[Event "NOR-ch Various 2019"]
[Site "Larvik"]
[Date "2019.07.08"]
[Round "3.39"]
[White "Skagseth, Havard M"]
[Black "Esbensen, Arnt"]
[Result "1-0"]
[ECO "C42"]
[WhiteElo "2002"]
[BlackElo "2153"]
[Annotator "NA"]
[PlyCount "101"]
[EventDate "2019.07.06"]
[EventType "swiss"]
[EventCountry "NOR"]
[SourceTitle "playchess.com"]
[Source "ChessBase"]
[SourceQuality "1"]
[TimeControl "40/5400+30:1800+30"]

1. e4 {[%emt 0:00:00]} e5 {[%emt 0:08:14]} 2. Nf3 {[%emt 0:00:24]} Nf6 {[%emt 0:00:18]} 3. Nxe5 {[%emt 0:00:08]} d6 {[%emt 0:00:07]} 4. Nf3 {[%emt 0:00:04]} Nxe4 {[%emt 0:00:12]} 5. Nc3 {[%emt 0:00:08]} Nxc3 {[%emt 0:00:06]} 6. dxc3 {[%emt 0:00:12]} Nc6 {[%emt 0:00:25]} 7. Be3 {[%emt 0:05:21]} Be7 {[%emt 0:00:28]} 8. Qd2 {[%emt 0:03:52]} Bg4 {[%emt 0:00:18]} 9. Be2 {[%emt 0:08:45]} Qd7 {[%emt 0:01:26]} 10. O-O-O {[%emt 0:02:09]} Rb8 {[%emt 0:06:05]} 11. Kb1 {[%emt 0:03:00]} O-O {[%emt 0:03:10]} 12. Nd4 {[%emt 0:12:46]} Bxe2 {[%emt 0:07:08]} 13. Qxe2 {[%emt 0:00:34]} a6 {[%emt 0:03:15]} 14. Nxc6 {[%emt 0:10:05]} bxc6 {[%emt 0:04:45]} 15. Bd4 {[%emt 0:02:06]} Rfe8 {[%emt 0:12:20]} 16. Qd3 {[%emt 0:07:11]} a5 {[%emt 0:14:11]} 17. c4 {[%emt 0:04:14]} Bf8 {[%emt 0:08:10]} 18. Bc3 {[%emt 0:02:37]} a4 {[%emt 0:00:23]} 19. h4 {[%emt 0:01:29]} Qg4 {[%emt 0:02:40]} 20. h5 {[%emt 0:10:29]} Re6 {[%emt 0:06:03]} 21. g3 {[%emt 0:04:39]} Qe4 {[%emt 0:01:59]} 22. Rhe1 {[%emt 0:03:24]} Qg4 {[%emt 0:02:00]} 23. Rh1 {[%emt 0:03:42]} Rbe8 {[%emt 0:01:11]} 24. Rh4 {[%emt 0:02:03]} Qe2 {[%emt 0:05:03]} 25. Qxe2 {[%emt 0:02:09]} Rxe2 {[%emt 0:00:10]} 26. Bd4 {[%emt 0:00:26]} R2e4 {[%emt 0:00:14]} 27. Rxe4 {[%emt 0:01:24]} Rxe4 {[%emt 0:00:06]} 28. b3 {[%emt 0:00:32]} a3 {[%emt 0:01:21]} 29. Be3 {[%emt 0:02:03]} f5 {[%emt 0:03:18]} 30. Bc1 {[%emt 0:03:12]} Re2 {[%emt 0:05:30]} 31. Be3 {[%emt 0:02:18]} d5 {[%emt 0:02:29]} 32. Rh1 {[%emt 0:00:59]} Bb4 {[%emt 0:00:25]} 33. Kc1 {[%emt 0:01:30]} Re1+ {[%emt 0:01:21]} 34. Rxe1 {[%emt 0:00:05]} Bxe1 {[%emt 0:00:07]} 35. Bc5 {[%emt 0:01:24]} Kf7 {[%emt 0:01:32]} 36. Kd1 {[%emt 0:00:07]} Bc3 {[%emt 0:00:19]} 37. Bxa3 {[%emt 0:00:42]} f4 {[%emt 0:00:18]} 38. Ke2 {[%emt 0:00:59]} fxg3 {[%emt 0:00:58]} 39. fxg3 {[%emt 0:00:10]} Kf6 {[%emt 0:00:26]} 40. cxd5 {[%emt 0:01:08]} cxd5 {[%emt 0:00:16]} 41. Bc5 {[%emt 0:30:29]} Ke6 {[%emt 0:02:33]} 42. b4 {[%emt 0:00:00]} Kd7 {[%emt 0:00:12]} 43. a4 {[%emt 0:00:00]} Kc6 {[%emt 0:00:18]} 44. g4 {[%emt 0:00:00]} g6 {[%emt 0:00:16]} 45. Kd3 {[%emt 0:00:00]} Be1 {[%emt 0:03:25]} 46. c3 {[%emt 0:00:00]} Bg3 {[%emt 0:01:47]} 47. Be3 {[%emt 0:00:00]} Kb7 {[%emt 0:03:32]} 48. b5 {[%emt 0:00:00]} c6 {[%emt 0:01:18]} 49. c4 {[%emt 0:00:00]} dxc4+ {[%emt 0:13:07]} 50. Kxc4 {[%emt 0:00:00]} Bd6 {[%emt 0:00:19]} 51. a5 {[%emt 0:00:00]} 1-0

[Event "NOR-ch Various 2019"]
[Site "Larvik"]
[Date "2019.07.08"]
[Round "3.40"]
[White "Skotheim, Andreas"]
[Black "Kvam, Audun"]
[Result "1-0"]
[ECO "A70"]
[WhiteElo "2138"]
[BlackElo "2017"]
[Annotator "NA"]
[PlyCount "91"]
[EventDate "2019.07.06"]
[EventType "swiss"]
[EventCountry "NOR"]
[SourceTitle "playchess.com"]
[Source "ChessBase"]
[SourceQuality "1"]
[TimeControl "40/5400+30:1800+30"]

1. d4 {[%emt 0:00:00]} Nf6 {[%emt 0:16:24]} 2. c4 {[%emt 0:00:08]} e6 {[%emt 0:00:07]} 3. Nc3 {[%emt 0:00:23]} c5 {[%emt 0:00:06]} 4. d5 {[%emt 0:01:00]} exd5 {[%emt 0:00:06]} 5. cxd5 {[%emt 0:00:07]} d6 {[%emt 0:00:10]} 6. Nf3 {[%emt 0:04:00]} g6 {[%emt 0:00:23]} 7. h3 {[%emt 0:00:58]} Bg7 {[%emt 0:01:07]} 8. e4 {[%emt 0:00:29]} a6 {[%emt 0:01:13]} 9. a4 {[%emt 0:00:28]} Nbd7 {[%emt 0:00:22]} 10. Bd3 {[%emt 0:04:04]} O-O {[%emt 0:00:24]} 11. O-O {[%emt 0:00:17]} Re8 {[%emt 0:00:43]} 12. Re1 {[%emt 0:11:43]} Qc7 {[%emt 0:02:17]} 13. Bc4 {[%emt 0:08:38]} h6 {[%emt 0:12:22]} 14. Bf4 {[%emt 0:11:51]} Nh5 {[%emt 0:09:07]} 15. Bh2 {[%emt 0:00:51]} Ne5 {[%emt 0:01:32]} 16. Nd2 {[%emt 0:01:11]} Qe7 {[%emt 0:22:30]} 17. f4 {[%emt 0:07:22]} Nd7 {[%emt 0:03:19]} 18. g4 {[%emt 0:12:08]} Nhf6 {[%emt 0:07:50]} 19. Nf3 {[%emt 0:04:40]} Nb6 {[%emt 0:01:29]} 20. Ba2 {[%emt 0:01:37]} Nxg4 {[%emt 0:01:12]} 21. hxg4 {[%emt 0:01:09]} Bxg4 {[%emt 0:00:07]} 22. a5 {[%emt 0:02:05]} Nd7 {[%emt 0:02:24]} 23. Qd3 {[%emt 0:02:03]} Bxf3 {[%emt 0:07:26]} 24. Qxf3 {[%emt 0:00:11]} Bd4+ {[%emt 0:01:22]} 25. Kg2 {[%emt 0:01:54]} Kh7 {[%emt 0:02:18]} 26. Bb1 {[%emt 0:04:33]} f5 {[%emt 0:00:28]} 27. Bc2 {[%emt 0:00:38]} Qf6 {[%emt 0:00:51]} 28. Bg3 {[%emt 0:00:41]} g5 {[%emt 0:01:46]} 29. fxg5 {[%emt 0:01:20]} hxg5 {[%emt 0:00:02]} 30. Qxf5+ {[%emt 0:00:45]} Qxf5 {[%emt 0:01:44]} 31. exf5 {[%emt 0:00:07]} Ne5 {[%emt 0:00:19]} 32. Ne4 {[%emt 0:00:35]} Nc4 {[%emt 0:00:50]} 33. Bf2 {[%emt 0:01:40]} Bxb2 {[%emt 0:00:32]} 34. Rab1 {[%emt 0:00:43]} Be5 {[%emt 0:01:09]} 35. Rxb7+ {[%emt 0:00:59]} Kg8 {[%emt 0:00:06]} 36. Bg3 {[%emt 0:01:11]} Rab8 {[%emt 0:00:40]} 37. Rxb8 {[%emt 0:01:27]} Rxb8 {[%emt 0:00:05]} 38. Bxe5 {[%emt 0:00:40]} Nxe5 {[%emt 0:00:09]} 39. Nxd6 {[%emt 0:00:42]} Nd7 {[%emt 0:00:48]} 40. Re8+ {[%emt 0:01:12]} Rxe8 {[%emt 0:00:04]} 41. Nxe8 {[%emt 0:30:08]} Kf7 {[%emt 0:30:29]} 42. Nc7 {[%emt 0:01:19]} Kf6 {[%emt 0:00:16]} 43. Nxa6 {[%emt 0:01:01]} Ke5 {[%emt 0:00:09]} 44. Ba4 {[%emt 0:02:50]} Nf6 {[%emt 0:00:22]} 45. Nc7 {[%emt 0:00:44]} Kd6 {[%emt 0:02:54]} 46. Ne8+ {[%emt 0:02:30]} 1-0

[Event "NOR-ch Various 2019"]
[Site "Larvik"]
[Date "2019.07.08"]
[Round "3.41"]
[White "Johnsen, Kjell Magne"]
[Black "Huse, Sigurd Kjelsbol"]
[Result "0-1"]
[ECO "D00"]
[WhiteElo "1995"]
[BlackElo "2122"]
[Annotator "NA"]
[PlyCount "102"]
[EventDate "2019.07.06"]
[EventType "swiss"]
[EventCountry "NOR"]
[SourceTitle "playchess.com"]
[Source "ChessBase"]
[SourceQuality "1"]
[TimeControl "40/5400+30:1800+30"]

1. d4 {[%emt 0:00:00]} d5 {[%emt 0:00:00]} 2. Nc3 {[%emt 0:00:00]} Bf5 {[%emt 0:00:00]} 3. Bf4 {[%emt 0:00:03]} e6 {[%emt 0:03:47]} 4. e3 {[%emt 0:02:29]} Nf6 {[%emt 0:03:28]} 5. Nf3 {[%emt 0:07:42]} c6 {[%emt 0:01:54]} 6. a3 {[%emt 0:24:23]} Nbd7 {[%emt 0:03:30]} 7. Ne5 {[%emt 0:04:10]} Nxe5 {[%emt 0:04:33]} 8. Bxe5 {[%emt 0:00:33]} Ne4 {[%emt 0:00:15]} 9. Nxe4 {[%emt 0:00:36]} Bxe4 {[%emt 0:00:07]} 10. f3 {[%emt 0:00:41]} Bg6 {[%emt 0:00:49]} 11. Bd3 {[%emt 0:00:14]} Qh4+ {[%emt 0:04:22]} 12. Bg3 {[%emt 0:02:23]} Qg5 {[%emt 0:00:46]} 13. Qe2 {[%emt 0:04:06]} h5 {[%emt 0:03:39]} 14. O-O {[%emt 0:09:23]} h4 {[%emt 0:05:37]} 15. Bf4 {[%emt 0:00:43]} Qh5 {[%emt 0:00:55]} 16. Bxg6 {[%emt 0:01:34]} Qxg6 {[%emt 0:00:15]} 17. h3 {[%emt 0:01:59]} Rd8 {[%emt 0:03:46]} 18. c4 {[%emt 0:18:40]} Bd6 {[%emt 0:02:49]} 19. Bxd6 {[%emt 0:00:23]} Rxd6 {[%emt 0:00:02]} 20. c5 {[%emt 0:00:24]} Rd7 {[%emt 0:00:30]} 21. b4 {[%emt 0:00:36]} Re7 {[%emt 0:05:15]} 22. f4 {[%emt 0:03:43]} Rh6 {[%emt 0:03:38]} 23. Rad1 {[%emt 0:08:07]} f6 {[%emt 0:01:39]} 24. Qf3 {[%emt 0:01:56]} Qf5 {[%emt 0:00:42]} 25. Qf2 {[%emt 0:02:51]} Kf7 {[%emt 0:03:40]} 26. Kh2 {[%emt 0:00:40]} Re8 {[%emt 0:00:28]} 27. Qf3 {[%emt 0:00:30]} Rg6 {[%emt 0:00:35]} 28. Qe2 {[%emt 0:00:22]} Kg8 {[%emt 0:04:27]} 29. Qd3 {[%emt 0:00:26]} Rg3 {[%emt 0:04:52]} 30. Rf3 {[%emt 0:00:19]} Rxf3 {[%emt 0:00:35]} 31. gxf3 {[%emt 0:00:01]} Qh5 {[%emt 0:00:06]} 32. e4 {[%emt 0:02:18]} dxe4 {[%emt 0:01:39]} 33. fxe4 {[%emt 0:01:12]} e5 {[%emt 0:00:15]} 34. dxe5 {[%emt 0:00:53]} fxe5 {[%emt 0:00:48]} 35. f5 {[%emt 0:00:01]} Qg5 {[%emt 0:02:15]} 36. Qf3 {[%emt 0:01:40]} Rd8 {[%emt 0:00:35]} 37. Rxd8+ {[%emt 0:00:05]} Qxd8 {[%emt 0:00:04]} 38. Qb3+ {[%emt 0:01:57]} Kh8 {[%emt 0:01:44]} 39. Qf7 {[%emt 0:00:23]} Qd2+ {[%emt 0:02:30]} 40. Kg1 {[%emt 0:00:26]} Qe3+ {[%emt 0:01:15]} 41. Kf1 {[%emt 0:04:34]} Qxh3+ {[%emt 0:00:13]} 42. Kg1 {[%emt 0:03:02]} Qg4+ {[%emt 0:03:03]} 43. Kh2 {[%emt 0:02:31]} Kh7 {[%emt 0:01:50]} 44. f6 {[%emt 0:06:19]} Qg3+ {[%emt 0:00:28]} 45. Kh1 {[%emt 0:00:14]} Qg6 {[%emt 0:00:03]} 46. Qxb7 {[%emt 0:05:23]} Qxe4+ {[%emt 0:04:05]} 47. Kg1 {[%emt 0:00:54]} Qg6+ {[%emt 0:04:58]} 48. Kh1 {[%emt 0:01:39]} Qxf6 {[%emt 0:00:29]} 49. b5 {[%emt 0:01:33]} Qf3+ {[%emt 0:01:21]} 50. Kh2 {[%emt 0:00:58]} h3 {[%emt 0:00:13]} 51. Qxc6 {[%emt 0:00:15]} e4 {[%emt 0:00:03]} 0-1

[Event "NOR-ch Various 2019"]
[Site "Larvik"]
[Date "2019.07.09"]
[Round "4.1"]
[White "Smeby, Ole"]
[Black "Stake-Larsen, Gunnar"]
[Result "1/2-1/2"]
[ECO "D48"]
[WhiteElo "1887"]
[BlackElo "1976"]
[Annotator "NA"]
[PlyCount "134"]
[EventDate "2019.07.06"]
[EventType "swiss"]
[EventCountry "NOR"]
[SourceTitle "playchess.com"]
[Source "ChessBase"]
[SourceQuality "1"]
[TimeControl "40/5400+30:1800+30"]

1. d4 {[%emt 0:00:00]} d5 {[%emt 0:00:00]} 2. c4 {[%emt 0:00:00]} e6 {[%emt 0:00:16]} 3. Nf3 {[%emt 0:00:00]} c6 {[%emt 0:00:29]} 4. e3 {[%emt 0:00:04]} Nf6 {[%emt 0:00:31]} 5. Bd3 {[%emt 0:00:12]} Nbd7 {[%emt 0:00:50]} 6. Nc3 {[%emt 0:00:33]} dxc4 {[%emt 0:04:42]} 7. Bxc4 {[%emt 0:00:09]} b5 {[%emt 0:00:10]} 8. Bd3 {[%emt 0:00:07]} a6 {[%emt 0:00:16]} 9. O-O {[%emt 0:00:58]} c5 {[%emt 0:00:32]} 10. Bc2 {[%emt 0:01:31]} Bb7 {[%emt 0:01:33]} 11. Re1 {[%emt 0:05:03]} b4 {[%emt 0:10:40]} 12. Na4 {[%emt 0:00:26]} cxd4 {[%emt 0:05:11]} 13. exd4 {[%emt 0:04:49]} Be7 {[%emt 0:01:28]} 14. Bf4 {[%emt 0:04:05]} O-O {[%emt 0:02:41]} 15. Rc1 {[%emt 0:00:37]} Rc8 {[%emt 0:01:26]} 16. Qe2 {[%emt 0:03:36]} Qa5 {[%emt 0:02:24]} 17. b3 {[%emt 0:06:44]} Qh5 {[%emt 0:05:11]} 18. Ne5 {[%emt 0:08:34]} Qxe2 {[%emt 0:01:38]} 19. Rxe2 {[%emt 0:00:06]} Nxe5 {[%emt 0:01:18]} 20. dxe5 {[%emt 0:00:50]} Nd5 {[%emt 0:00:21]} 21. Bd2 {[%emt 0:02:57]} Rfd8 {[%emt 0:17:34]} 22. Nb2 {[%emt 0:15:15]} Nc3 {[%emt 0:10:54]} 23. Bxc3 {[%emt 0:01:01]} Rxc3 {[%emt 0:01:19]} 24. Rd1 {[%emt 0:05:33]} Rxd1+ {[%emt 0:02:17]} 25. Nxd1 {[%emt 0:00:15]} Rc8 {[%emt 0:01:12]} 26. Ne3 {[%emt 0:03:31]} Rd8 {[%emt 0:06:28]} 27. Nc4 {[%emt 0:02:06]} Kf8 {[%emt 0:01:24]} 28. h3 {[%emt 0:00:48]} Rd4 {[%emt 0:01:21]} 29. Rd2 {[%emt 0:02:00]} Rxd2 {[%emt 0:00:20]} 30. Nxd2 {[%emt 0:00:06]} Bc5 {[%emt 0:01:18]} 31. Kf1 {[%emt 0:09:01]} h6 {[%emt 0:02:48]} 32. Be4 {[%emt 0:01:25]} Bc8 {[%emt 0:03:52]} 33. Ke2 {[%emt 0:00:31]} Bd7 {[%emt 0:02:04]} 34. f4 {[%emt 0:01:28]} a5 {[%emt 0:00:44]} 35. g4 {[%emt 0:03:25]} Ke7 {[%emt 0:02:56]} 36. Bd3 {[%emt 0:03:27]} f6 {[%emt 0:01:36]} 37. exf6+ {[%emt 0:03:08]} gxf6 {[%emt 0:00:10]} 38. Nc4 {[%emt 0:00:38]} a4 {[%emt 0:00:52]} 39. bxa4 {[%emt 0:00:14]} Bxa4 {[%emt 0:00:15]} 40. Nd2 {[%emt 0:00:19]} Bd4 {[%emt 0:03:55]} 41. Be4 {[%emt 0:31:26]} Bb5+ {[%emt 0:33:22]} 42. Bd3 {[%emt 0:01:33]} Bd7 {[%emt 0:00:39]} 43. Be4 {[%emt 0:00:23]} Be8 {[%emt 0:00:00]} 44. Nb3 {[%emt 0:00:00]} Bb6 {[%emt 0:00:00]} 45. Kf3 {[%emt 0:00:00]} Kd6 {[%emt 0:00:00]} 46. Ke2 {[%emt 0:00:00]} Bd8 {[%emt 0:00:00]} 47. Nd4 {[%emt 0:00:00]} h5 {[%emt 0:00:00]} 48. Kd3 {[%emt 0:00:00]} hxg4 {[%emt 0:00:00]} 49. hxg4 {[%emt 0:00:00]} Bf7 {[%emt 0:00:00]} 50. Nc6 {[%emt 0:00:00]} Bb6 {[%emt 0:00:00]} 51. Nxb4 {[%emt 0:00:00]} e5 {[%emt 0:00:00]} 52. fxe5+ {[%emt 0:00:00]} Kxe5 {[%emt 0:00:00]} 53. Bf5 {[%emt 0:00:00]} Kf4 {[%emt 0:00:00]} 54. a3 {[%emt 0:00:00]} Bc5 {[%emt 0:00:00]} 55. Kc3 {[%emt 0:00:00]} Kg5 {[%emt 0:00:00]} 56. a4 {[%emt 0:00:00]} Bh5 {[%emt 0:00:14]} 57. Nd5 {[%emt 0:00:00]} Bxg4 {[%emt 0:01:31]} 58. Bxg4 {[%emt 0:00:00]} Kxg4 {[%emt 0:00:09]} 59. Nxf6+ {[%emt 0:00:00]} Kf5 {[%emt 0:00:42]} 60. Kc4 {[%emt 0:00:30]} Ba7 {[%emt 0:01:17]} 61. Nd5 {[%emt 0:02:27]} Ke6 {[%emt 0:01:19]} 62. Nb4 {[%emt 0:01:15]} Kd7 {[%emt 0:01:17]} 63. Kb5 {[%emt 0:00:12]} Kc8 {[%emt 0:01:12]} 64. Ka6 {[%emt 0:00:23]} Bf2 {[%emt 0:00:31]} 65. Nc6 {[%emt 0:01:46]} Kc7 {[%emt 0:00:32]} 66. Ne7 {[%emt 0:01:03]} Kb8 {[%emt 0:00:33]} 67. Nd5 {[%emt 0:00:16]} Ka8 {[%emt 0:00:22]} 1/2-1/2

[Event "NOR-ch Various 2019"]
[Site "Larvik"]
[Date "2019.07.09"]
[Round "4.2"]
[White "Skogheim, Ole Morten"]
[Black "Overlie, Finn"]
[Result "1-0"]
[ECO "C42"]
[WhiteElo "1968"]
[BlackElo "1794"]
[Annotator "NA"]
[PlyCount "33"]
[EventDate "2019.07.06"]
[EventType "swiss"]
[EventCountry "NOR"]
[SourceTitle "playchess.com"]
[Source "ChessBase"]
[SourceQuality "1"]
[TimeControl "40/5400+30:1800+30"]

1. e4 {[%emt 0:00:00]} e5 {[%emt 0:00:58]} 2. Nf3 {[%emt 0:00:00]} Nf6 {[%emt 0:00:06]} 3. Nxe5 {[%emt 0:00:00]} d6 {[%emt 0:00:48]} 4. Nf3 {[%emt 0:00:00]} Nxe4 {[%emt 0:00:10]} 5. Nc3 {[%emt 0:00:08]} Nxc3 {[%emt 0:00:07]} 6. dxc3 {[%emt 0:00:04]} Be7 {[%emt 0:00:28]} 7. Bf4 {[%emt 0:00:11]} Nc6 {[%emt 0:03:54]} 8. Qd2 {[%emt 0:00:48]} h6 {[%emt 0:03:35]} 9. O-O-O {[%emt 0:02:56]} Be6 {[%emt 0:02:07]} 10. Kb1 {[%emt 0:02:28]} a6 {[%emt 0:03:49]} 11. Bd3 {[%emt 0:06:24]} Qd7 {[%emt 0:02:37]} 12. Rhe1 {[%emt 0:10:11]} O-O-O {[%emt 0:01:25]} 13. Nd4 {[%emt 0:09:27]} Nxd4 {[%emt 0:05:11]} 14. cxd4 {[%emt 0:00:05]} Rhe8 {[%emt 0:15:24]} 15. Qa5 {[%emt 0:04:50]} Qc6 {[%emt 0:16:56]} 16. Bf1 {[%emt 0:10:15]} Bf5 {[%emt 0:03:56]} 17. Qxf5+ {[%emt 0:00:20]} 1-0

[Event "NOR-ch Various 2019"]
[Site "Larvik"]
[Date "2019.07.09"]
[Round "4.3"]
[White "Mottang, Harald"]
[Black "Starli, Atle"]
[Result "0-1"]
[ECO "D78"]
[WhiteElo "1559"]
[BlackElo "1526"]
[Annotator "NA"]
[PlyCount "42"]
[EventDate "2019.07.06"]
[EventType "swiss"]
[EventCountry "NOR"]
[SourceTitle "playchess.com"]
[Source "ChessBase"]
[SourceQuality "1"]
[TimeControl "40/5400+30:1800+30"]

1. Nf3 {[%emt 0:00:00]} d5 {[%emt 0:00:00]} 2. c4 {[%emt 0:00:02]} c6 {[%emt 0:00:17]} 3. d4 {[%emt 0:01:13]} Nf6 {[%emt 0:01:05]} 4. Nc3 {[%emt 0:00:21]} g6 {[%emt 0:00:41]} 5. g3 {[%emt 0:01:17]} Bg7 {[%emt 0:00:20]} 6. Bg2 {[%emt 0:00:11]} O-O {[%emt 0:00:21]} 7. O-O {[%emt 0:00:27]} dxc4 {[%emt 0:02:44]} 8. a4 {[%emt 0:00:39]} Bf5 {[%emt 0:03:41]} 9. Nh4 {[%emt 0:01:51]} Be6 {[%emt 0:01:23]} 10. e4 {[%emt 0:00:52]} Na6 {[%emt 0:04:14]} 11. f4 {[%emt 0:06:32]} Qb6 {[%emt 0:04:40]} 12. a5 {[%emt 0:10:34]} Qd8 {[%emt 0:03:53]} 13. f5 {[%emt 0:04:10]} Bc8 {[%emt 0:01:53]} 14. Ra4 {[%emt 0:03:28]} e6 {[%emt 0:06:14]} 15. fxg6 {[%emt 0:05:54]} fxg6 {[%emt 0:00:34]} 16. Bg5 {[%emt 0:00:25]} e5 {[%emt 0:06:42]} 17. Rxc4 {[%emt 0:07:02]} Qxa5 {[%emt 0:04:06]} 18. dxe5 {[%emt 0:08:12]} Qxe5 {[%emt 0:03:04]} 19. Bf4 {[%emt 0:06:44]} Qa5 {[%emt 0:04:34]} 20. Ra4 {[%emt 0:05:02]} Qb6+ {[%emt 0:01:12]} 21. Rf2 {[%emt 0:13:54]} Ng4 0-1

[Event "NOR-ch Various 2019"]
[Site "Larvik"]
[Date "2019.07.09"]
[Round "4.4"]
[White "Kristiansen, Oddvar"]
[Black "Wessel-Berg, Dag"]
[Result "1/2-1/2"]
[ECO "C54"]
[WhiteElo "1479"]
[BlackElo "1486"]
[Annotator "NA"]
[PlyCount "59"]
[EventDate "2019.07.06"]
[EventType "swiss"]
[EventCountry "NOR"]
[SourceTitle "playchess.com"]
[Source "ChessBase"]
[SourceQuality "1"]
[TimeControl "40/5400+30:1800+30"]

1. e4 {[%emt 0:00:14]} e5 {[%emt 0:00:00]} 2. Nf3 {[%emt 0:00:22]} Nc6 {[%emt 0:00:19]} 3. Bc4 {[%emt 0:02:38]} Nf6 {[%emt 0:01:12]} 4. Qe2 {[%emt 0:02:29]} Bc5 {[%emt 0:02:22]} 5. c3 {[%emt 0:01:08]} O-O {[%emt 0:00:33]} 6. O-O {[%emt 0:00:47]} d6 {[%emt 0:09:41]} 7. d3 {[%emt 0:04:25]} h6 {[%emt 0:04:25]} 8. h3 {[%emt 0:08:21]} a6 {[%emt 0:01:51]} 9. a4 {[%emt 0:03:51]} Ne7 {[%emt 0:02:38]} 10. d4 {[%emt 0:02:47]} exd4 {[%emt 0:01:23]} 11. cxd4 {[%emt 0:00:06]} Ba7 {[%emt 0:00:22]} 12. Nc3 {[%emt 0:06:05]} c6 {[%emt 0:01:28]} 13. e5 {[%emt 0:04:53]} dxe5 {[%emt 0:03:25]} 14. dxe5 {[%emt 0:00:11]} Nh7 {[%emt 0:01:14]} 15. Be3 {[%emt 0:05:16]} Bb8 {[%emt 0:02:01]} 16. Rfd1 {[%emt 0:03:04]} Qc7 {[%emt 0:01:05]} 17. Bc5 {[%emt 0:02:47]} Re8 {[%emt 0:00:55]} 18. Bd6 {[%emt 0:03:23]} Qb6 {[%emt 0:01:32]} 19. a5 {[%emt 0:01:43]} Qa7 {[%emt 0:00:40]} 20. Bxe7 {[%emt 0:01:30]} Bxh3 {[%emt 0:09:25]} 21. gxh3 {[%emt 0:00:04]} Rxe7 {[%emt 0:00:20]} 22. Rd8+ {[%emt 0:08:32]} Nf8 {[%emt 0:00:10]} 23. Rad1 {[%emt 0:14:41]} Bc7 {[%emt 0:02:14]} 24. Rxa8 {[%emt 0:02:16]} Qxa8 {[%emt 0:00:07]} 25. Ne4 {[%emt 0:07:00]} Qc8 {[%emt 0:02:15]} 26. Nd6 {[%emt 0:08:25]} Qxh3 {[%emt 0:02:32]} 27. Nxb7 {[%emt 0:04:23]} Qg4+ {[%emt 0:01:05]} 28. Kf1 {[%emt 0:00:26]} Qh3+ {[%emt 0:00:27]} 29. Kg1 {[%emt 0:00:30]} Qg4+ {[%emt 0:00:05]} 30. Kf1 {[%emt 0:02:01]} 1/2-1/2

[Event "NOR-ch Various 2019"]
[Site "Larvik"]
[Date "2019.07.09"]
[Round "4.5"]
[White "Omtvedt, Aleksander"]
[Black "Engeset, Audun"]
[Result "1/2-1/2"]
[ECO "D04"]
[WhiteElo "1871"]
[BlackElo "1944"]
[Annotator "NA"]
[PlyCount "57"]
[EventDate "2019.07.06"]
[EventType "swiss"]
[EventCountry "NOR"]
[SourceTitle "playchess.com"]
[Source "ChessBase"]
[SourceQuality "1"]
[TimeControl "40/5400+30:1800+30"]

1. d4 {[%emt 0:06:21]} Nf6 {[%emt 0:00:00]} 2. Nf3 {[%emt 0:00:43]} c5 {[%emt 0:00:06]} 3. c3 {[%emt 0:01:13]} Qb6 {[%emt 0:07:22]} 4. e3 {[%emt 0:02:41]} g6 {[%emt 0:01:34]} 5. Nbd2 {[%emt 0:01:06]} d5 {[%emt 0:01:28]} 6. Bd3 {[%emt 0:02:09]} Bg7 {[%emt 0:01:18]} 7. Ne5 {[%emt 0:03:05]} O-O {[%emt 0:01:18]} 8. O-O {[%emt 0:03:26]} Nc6 {[%emt 0:04:21]} 9. f4 {[%emt 0:09:13]} Nd7 {[%emt 0:07:29]} 10. Nxc6 {[%emt 0:06:19]} bxc6 {[%emt 0:00:51]} 11. Qb3 {[%emt 0:01:40]} Qxb3 {[%emt 0:01:51]} 12. axb3 {[%emt 0:02:23]} cxd4 {[%emt 0:02:03]} 13. exd4 {[%emt 0:01:50]} c5 {[%emt 0:02:26]} 14. Nf3 {[%emt 0:06:00]} cxd4 {[%emt 0:01:29]} 15. cxd4 {[%emt 0:02:25]} Nf6 {[%emt 0:06:20]} 16. Ra5 {[%emt 0:01:26]} e6 {[%emt 0:07:02]} 17. Bd2 {[%emt 0:04:35]} Ne4 {[%emt 0:07:51]} 18. Bc3 {[%emt 0:02:58]} Rd8 {[%emt 0:15:15]} 19. Rfa1 {[%emt 0:01:17]} Rd7 {[%emt 0:01:07]} 20. Be1 {[%emt 0:01:42]} Rc7 {[%emt 0:04:25]} 21. b4 {[%emt 0:02:13]} Nd6 {[%emt 0:02:41]} 22. b5 {[%emt 0:03:28]} Rb7 {[%emt 0:03:35]} 23. Ne5 {[%emt 0:03:47]} Bxe5 {[%emt 0:03:56]} 24. fxe5 {[%emt 0:02:32]} Nc4 {[%emt 0:00:18]} 25. Bxc4 {[%emt 0:04:11]} dxc4 {[%emt 0:00:08]} 26. R1a4 {[%emt 0:04:08]} Bd7 {[%emt 0:00:54]} 27. Rxc4 {[%emt 0:00:17]} Bxb5 {[%emt 0:00:39]} 28. Rc5 {[%emt 0:01:33]} a6 {[%emt 0:00:26]} 29. Ra1 {[%emt 0:01:04]} 1/2-1/2

[Event "NOR-ch Various 2019"]
[Site "Larvik"]
[Date "2019.07.09"]
[Round "4.6"]
[White "Kyrkjebo, Hanna B."]
[Black "Kittilsen, Sigurd"]
[Result "1/2-1/2"]
[ECO "B27"]
[WhiteElo "1915"]
[BlackElo "1894"]
[Annotator "NA"]
[PlyCount "81"]
[EventDate "2019.07.06"]
[EventType "swiss"]
[EventCountry "NOR"]
[SourceTitle "playchess.com"]
[Source "ChessBase"]
[SourceQuality "1"]
[TimeControl "40/5400+30:1800+30"]

1. e4 {[%emt 0:02:10]} c5 {[%emt 0:00:00]} 2. Nf3 {[%emt 0:00:16]} g6 {[%emt 0:00:00]} 3. d4 {[%emt 0:00:24]} cxd4 {[%emt 0:00:00]} 4. Qxd4 {[%emt 0:00:08]} Nf6 {[%emt 0:00:22]} 5. Nc3 {[%emt 0:00:25]} Nc6 {[%emt 0:00:19]} 6. Qa4 {[%emt 0:00:35]} d6 {[%emt 0:00:57]} 7. e5 {[%emt 0:00:56]} dxe5 {[%emt 0:00:18]} 8. Nxe5 {[%emt 0:00:19]} Bg7 {[%emt 0:00:20]} 9. Bb5 {[%emt 0:06:34]} O-O {[%emt 0:01:15]} 10. Nxc6 {[%emt 0:02:51]} bxc6 {[%emt 0:00:15]} 11. Bxc6 {[%emt 0:01:15]} Bd7 {[%emt 0:00:07]} 12. O-O {[%emt 0:08:15]} Rc8 {[%emt 0:01:07]} 13. Bxd7 {[%emt 0:00:30]} Qxd7 {[%emt 0:00:15]} 14. Qxd7 {[%emt 0:02:35]} Nxd7 {[%emt 0:01:33]} 15. Bd2 {[%emt 0:04:06]} Nb6 {[%emt 0:06:05]} 16. Rfe1 {[%emt 0:08:04]} e6 {[%emt 0:30:13]} 17. Red1 {[%emt 0:21:33]} Nc4 {[%emt 0:20:22]} 18. Rab1 {[%emt 0:03:50]} Nxd2 {[%emt 0:12:23]} 19. Rxd2 {[%emt 0:01:12]} Bxc3 {[%emt 0:01:44]} 20. bxc3 {[%emt 0:00:16]} Rxc3 {[%emt 0:00:23]} 21. Rb7 {[%emt 0:05:13]} Rfc8 {[%emt 0:08:23]} 22. g3 {[%emt 0:02:41]} R8c7 {[%emt 0:02:05]} 23. Rxc7 {[%emt 0:09:31]} Rxc7 {[%emt 0:00:05]} 24. Rd8+ {[%emt 0:00:49]} Kg7 {[%emt 0:00:14]} 25. Ra8 {[%emt 0:01:01]} Rxc2 {[%emt 0:02:09]} 26. Rxa7 {[%emt 0:00:11]} Kf6 {[%emt 0:00:17]} 27. a4 {[%emt 0:01:12]} Ra2 {[%emt 0:00:15]} 28. a5 {[%emt 0:01:09]} h5 {[%emt 0:00:30]} 29. a6 {[%emt 0:01:56]} e5 {[%emt 0:01:19]} 30. Ra8 {[%emt 0:01:50]} e4 {[%emt 0:00:57]} 31. a7 {[%emt 0:01:52]} Ra1+ {[%emt 0:00:25]} 32. Kg2 {[%emt 0:00:20]} Ra2 {[%emt 0:00:17]} 33. Kf1 {[%emt 0:04:47]} Kg7 {[%emt 0:01:42]} 34. Ke1 {[%emt 0:01:56]} Kf6 {[%emt 0:00:50]} 35. h3 {[%emt 0:02:06]} Kg7 {[%emt 0:00:20]} 36. Kd1 {[%emt 0:00:36]} Kf6 {[%emt 0:01:11]} 37. Ke1 {[%emt 0:04:09]} Kg7 {[%emt 0:00:13]} 38. h4 {[%emt 0:00:31]} Kf6 {[%emt 0:00:19]} 39. Kf1 {[%emt 0:00:43]} Kg7 {[%emt 0:00:08]} 40. Ke1 {[%emt 0:00:33]} Kf6 {[%emt 0:00:08]} 41. Kf1 {[%emt 0:13:37]} 1/2-1/2